bitfinex/quotes_ETHUSD_20220731
["timestamp","ask_amount","ask_price","bid_price","bid_amount"]
[1659298385777,0.3,1719.5,1719.4,1.52603399]
[1659298388157,0.3,1719.5,1719.4,4.52603399]
[1659298389426,0.3,1719.5,1719.4,5.11503399]
[1659298391463,0.3,1719.5,1719.4,4.52603399]
[1659298392569,0.3,1719.5,1719.4,4.42603399]
[1659298393064,0.3,1719.5,1719.4,4.49855318]
[1659298394222,0.3,1719.5,1719.4,7.9855999]
[1659298394422,0.3,1719.5,1719.4,8.05534731]
[1659298395587,0.3,1719.5,1719.4,4.56830059]
[1659298397058,0.3,1719.5,1719.4,4.41830059]
[1659298397764,0.3,1719.5,1719.4,4.48968727]
[1659298404292,0.3,1719.5,1719.4,4.41993986]
[1659298407182,0.3,1719.5,1719.4,7.90698658]
[1659298407867,0.4779,1719.5,1719.4,7.90698658]
[1659298412770,0.4779,1719.5,1719.4,8.08380483]
[1659298413208,0.4779,1719.5,1719.4,8.07380483]
[1659298413384,0.4779,1719.5,1719.4,7.48480483]
[1659298417297,0.4779,1719.5,1719.4,7.30798658]
[1659298418831,0.4779,1719.5,1719.4,4.40993986]
[1659298423412,0.47423859,1719.5,1719.4,4.40993986]
[1659298424410,0.47423859,1719.5,1719.4,1.40993986]
[1659298425924,0.47423859,1719.5,1719.4,4.40993986]
[1659298428316,0.47423859,1719.5,1719.4,4.58778334]
[1659298432553,0.47423859,1719.5,1719.4,4.40993986]
[1659298434008,0.47423859,1719.5,1719.4,7.30798658]
[1659298434499,0.47423859,1719.5,1719.4,4.40993986]
[1659298438809,0.67423859,1719.5,1719.4,0.06138668]
[1659298439011,0.67423859,1719.5,1719.0,2.95743]
[1659298439012,1.11023859,1719.5,1719.0,2.95743]
[1659298439208,4.24454,1719.4,1719.0,2.90743]
[1659298439514,2.5,1719.4,1719.0,2.90743]
[1659298440283,5.23369,1719.4,1719.1,1.45379]
[1659298440470,2.04454,1719.3,1719.1,4.45379]
[1659298441318,5.54274,1719.3,1719.1,1.45379]
[1659298441474,5.54274,1719.3,1719.0,2.90743]
[1659298441675,3.7982,1719.3,1719.1,1.45379]
[1659298441868,2.0446,1719.2,1719.0,2.90743]
[1659298442085,5.44309,1719.2,1718.9,5.81487]
[1659298442268,1.45385,1719.1,1718.9,5.81487]
[1659298442468,0.3,1719.0,1718.9,8.71291672]
[1659298442699,0.3,1719.0,1718.9,12.00363022]
[1659298443781,0.3,1719.0,1718.9,12.78961458]
[1659298444174,1.74464,1719.1,1718.9,13.22571458]
[1659298444394,1.74464,1719.1,1719.0,9.39804672]
[1659298444715,1.74464,1719.1,1719.0,6.07403108]
[1659298444897,1.74464,1719.1,1719.0,6.13376747]
[1659298445633,1.74464,1719.1,1719.0,5.95778311]
[1659298445976,2.04464,1719.1,1719.0,5.95778311]
[1659298446215,2.04464,1719.1,1719.0,9.45778311]
[1659298446779,1.75387,1719.1,1719.0,9.52490578]
[1659298448159,0.29067,1719.2,1719.0,9.52490578]
[1659298448160,1.74407,1719.2,1719.0,9.52490578]
[1659298448339,1.74407,1719.2,1719.1,2.89804672]
[1659298448545,0.1779,1719.5,1719.2,1.02693]
[1659298448726,0.1779,1719.5,1719.4,4.101]
[1659298448927,0.1779,1719.5,1719.4,11.35774672]
[1659298449116,1.50277,1719.9,1719.4,14.53373108]
[1659298449320,0.05,1720.1,1719.8,4.101]
[1659298449516,0.05,1720.4,1720.0,7.00804672]
[1659298449760,0.05,1720.7,1720.3,3.11]
[1659298449962,7.6798,1720.8,1720.4,2.89804672]
[1659298450143,7.6798,1720.8,1720.5,3.0]
[1659298450318,0.4356,1720.9,1720.5,5.89804672]
[1659298450522,0.4356,1720.9,1720.5,3.0]
[1659298450757,12.1556,1721.0,1720.3,4.72700637]
[1659298451060,12.1556,1721.0,1720.4,2.89804672]
[1659298451260,11.72,1721.0,1720.5,3.0]
[1659298451432,11.72,1721.0,1720.6,2.89804672]
[1659298451618,11.72,1721.0,1720.7,3.0]
[1659298452011,17.14670651,1721.0,1720.7,3.0]
[1659298452212,0.3898717,1720.9,1720.4,0.05]
[1659298452457,0.2905,1720.8,1720.3,4.06700637]
[1659298452612,0.2905,1720.8,1720.3,3.96505309]
[1659298452813,0.2905,1720.8,1720.4,3.0]
[1659298454852,0.2905,1720.8,1720.4,3.06682326]
[1659298455094,1.74305,1720.8,1720.4,3.06682326]
[1659298455752,2.03357,1720.8,1720.4,3.06682326]
[1659298456000,2.48837,1720.7,1720.4,0.06682326]
[1659298456169,0.29055,1720.6,1720.4,0.06682326]
[1659298456375,1.74333,1720.6,1720.4,0.06682326]
[1659298456689,0.3,1720.5,1720.4,0.06682326]
[1659298459351,0.6898717,1720.5,1720.4,0.06682326]
[1659298459552,0.6898717,1720.5,1720.3,0.06700637]
[1659298459795,0.9898717,1720.5,1720.3,0.13400904]
[1659298459998,0.9898717,1720.5,1720.0,0.05]
[1659298459999,2.17944,1720.4,1720.0,0.05]
[1659298460182,0.3,1720.3,1719.8,1.05]
[1659298460486,0.6898717,1720.2,1719.8,1.0]
[1659298461800,3.78757,1720.1,1719.8,1.06612378]
[1659298462005,3.49695,1720.1,1719.8,8.5229205]
[1659298462185,3.49695,1720.1,1719.9,3.67503108]
[1659298462439,3.49695,1720.1,1720.0,3.0]
[1659298463943,3.49695,1720.1,1720.0,3.65492377]
[1659298464132,3.49695,1720.1,1720.0,3.68387816]
[1659298465120,3.49695,1720.1,1720.0,6.58192488]
[1659298465849,2.04379,1720.1,1720.0,6.58192488]
[1659298466493,2.04083082,1720.1,1720.0,6.58192488]
[1659298466879,2.09851606,1720.1,1720.0,5.99292488]
[1659298467652,2.09851606,1720.1,1720.0,6.16456183]
[1659298467854,2.09851606,1720.1,1720.0,0.26651511]
[1659298469106,2.09851606,1720.1,1720.0,3.16456183]
[1659298469301,2.09851606,1720.1,1720.0,6.16456183]
[1659298474519,2.09851606,1720.1,1720.0,3.26651511]
[1659298474901,2.09851606,1720.1,1720.0,3.06592377]
[1659298475235,3.55161606,1720.1,1719.9,1.62383889]
[1659298475732,3.55161606,1720.1,1719.9,1.45273]
[1659298475935,3.55161606,1720.1,1719.9,1.45273794]
[1659298476091,3.55161606,1720.1,1719.9,1.45273]
[1659298476827,3.55161606,1720.1,1720.0,0.06768413]
[1659298477188,3.55161606,1720.1,1720.0,3.06768413]
[1659298485199,3.55161606,1720.1,1720.0,5.96573085]
[1659298486317,3.55161606,1720.1,1720.0,3.06768413]
[1659298486518,3.55161606,1720.1,1720.0,0.06768413]
[1659298494792,3.55161606,1720.1,1719.9,7.35871]
[1659298494793,3.0,1720.0,1719.9,7.35871]
[1659298495911,5.58605606,1720.1,1719.9,7.42394908]
[1659298496915,5.5833186,1720.1,1719.9,7.42394908]
[1659298501417,5.5833186,1720.1,1719.9,7.35871908]
[1659298501617,5.5833186,1720.1,1719.9,7.35871]
[1659298502164,5.5833186,1720.1,1719.9,7.35871471]
[1659298502365,5.5833186,1720.1,1719.9,7.35871]
[1659298503060,5.5833186,1720.1,1719.9,7.42290739]
[1659298504261,5.5833186,1720.1,1720.0,2.89804672]
[1659298504262,3.2488786,1720.1,1720.0,2.89804672]
[1659298504463,3.2488786,1720.1,1720.0,5.89804672]
[1659298505533,3.2488786,1720.1,1720.0,3.0]
[1659298505534,3.5488786,1720.1,1720.0,3.0]
[1659298507158,3.5488786,1720.1,1719.9,4.5866748]
[1659298508385,3.5488786,1720.1,1719.9,4.759267]
[1659298508707,3.5488786,1720.1,1719.9,4.51692739]
[1659298509293,0.3475486,1720.0,1719.9,4.51692739]
[1659298511651,0.3475486,1720.0,1719.9,4.45273]
[1659298511904,0.6475486,1720.0,1719.9,4.45273]
[1659298512056,1.0833486,1720.0,1719.8,1.45323]
[1659298512256,5.53138,1719.9,1719.8,1.45323]
[1659298512700,5.82201,1719.9,1719.8,1.45323]
[1659298512916,5.82201,1719.9,1719.6,3.0]
[1659298512917,3.49695,1719.9,1719.6,3.0]
[1659298513070,0.3,1719.8,1719.5,1.45319]
[1659298513268,0.3,1719.6,1719.5,4.35123672]
[1659298513471,0.3,1719.6,1719.5,7.35123672]
[1659298515342,0.36184291,1719.6,1719.5,7.35123672]
[1659298517057,0.36184291,1719.6,1719.5,5.89804672]
[1659298522433,0.36184291,1719.6,1719.5,3.0]
[1659298524153,0.36184291,1719.6,1719.5,5.89804672]
[1659298530390,0.3,1719.6,1719.5,5.89804672]
[1659298531199,0.36162256,1719.6,1719.5,5.89804672]
[1659298532119,0.358347,1719.6,1719.5,5.89804672]
[1659298535241,0.358347,1719.6,1719.5,3.0]
[1659298537236,0.4415756,1719.6,1719.5,3.0]
[1659298537864,0.7891242,1719.6,1719.5,3.0]
[1659298552981,0.7891242,1719.6,1719.5,5.89804672]
[1659298554779,0.7870766,1719.6,1719.5,5.89804672]
[1659298557896,0.7870766,1719.6,1719.5,10.02668915]
[1659298558077,0.7870766,1719.6,1719.5,6.52668915]
[1659298558621,4.2870766,1719.6,1718.4,1.89994996]
[1659298558781,0.2,1718.9,1718.6,9.14520324]
[1659298558981,0.2,1718.9,1718.1,0.2908021]
[1659298559184,3.11643256,1718.6,1717.9,1.55483342]
[1659298559423,3.79081,1718.5,1718.1,1.45415]
[1659298559592,0.2,1718.4,1718.1,1.45415]
[1659298559781,0.2,1718.4,1718.0,2.9083]
[1659298559782,4.0,1718.4,1717.9,0.91070927]
[1659298559987,0.3,1718.3,1717.9,0.91070927]
[1659298560222,0.5,1718.3,1717.9,3.5]
[1659298560424,0.2,1718.3,1717.8,0.02766979]
[1659298561056,6.21031717,1718.1,1717.8,0.02766979]
[1659298561256,6.21031717,1718.1,1717.9,3.5]
[1659298561423,0.2909,1718.4,1718.0,12.0]
[1659298561766,8.09414837,1718.8,1718.3,4.101]
[1659298561767,0.05,1718.7,1718.3,4.101]
[1659298562063,0.05474837,1718.8,1718.4,3.4]
[1659298562269,0.05474837,1718.8,1718.5,3.0]
[1659298563174,0.07670259,1718.7,1718.5,3.0]
[1659298564439,1.53071259,1718.7,1718.5,3.0]
[1659298564641,1.83071259,1718.7,1718.2,3.0]
[1659298565239,1.88526997,1718.7,1718.2,3.0]
[1659298567067,3.93026997,1718.7,1718.1,0.05541272]
[1659298567227,4.42709,1718.6,1718.0,0.05]
[1659298567425,4.42709,1718.6,1718.1,2.89804672]
[1659298567426,12.17429,1718.6,1718.1,2.89804672]
[1659298567628,8.67429,1718.6,1718.1,2.89804672]
[1659298567866,0.3475486,1718.3,1718.1,2.89804672]
[1659298568035,0.3,1718.2,1718.0,2.89804672]
[1659298568239,0.3,1718.2,1717.9,2.89804672]
[1659298568425,5.70483316,1718.1,1717.9,2.89804672]
[1659298569421,0.3,1718.2,1717.9,2.89804672]
[1659298570237,0.3,1718.2,1718.0,3.0]
[1659298571062,5.84472583,1718.1,1718.0,3.0]
[1659298572165,6.0177983,1718.1,1718.0,3.0]
[1659298573544,6.3177983,1718.1,1718.0,3.0]
[1659298573877,8.3541783,1718.1,1717.9,2.89804672]
[1659298574242,8.0541783,1718.1,1717.9,2.89259075]
[1659298574473,1.91854247,1718.1,1718.0,3.46974741]
[1659298574677,0.46398247,1718.1,1718.0,9.36779413]
[1659298575084,0.42979201,1718.1,1718.0,9.54377849]
[1659298575335,0.17807078,1718.1,1718.0,9.54377849]
[1659298576087,0.15479726,1718.1,1718.0,9.54377849]
[1659298576689,0.50234586,1718.1,1718.0,9.54377849]
[1659298580091,0.56106051,1718.1,1718.0,9.54377849]
[1659298580272,0.56106051,1718.1,1718.0,9.71432889]
[1659298584705,0.56106051,1718.1,1718.0,9.61432889]
[1659298586098,0.56106051,1718.1,1718.0,9.43834453]
[1659298587444,0.56106051,1718.1,1718.0,9.33834453]
[1659298592051,0.56106051,1718.1,1718.0,9.51432889]
[1659298593090,1.45409,1718.3,1718.0,17.01432889]
[1659298593239,0.05,1718.6,1718.2,10.88079413]
[1659298593439,10.8156,1719.3,1718.6,3.5]
[1659298593640,0.2907,1719.0,1718.8,3.5]
[1659298593843,0.2907,1719.0,1718.9,2.89804672]
[1659298594387,0.2907,1719.0,1718.9,5.89804672]
[1659298595052,0.45266517,1719.0,1718.9,5.89804672]
[1659298596444,0.75266517,1719.0,1718.9,5.89804672]
[1659298598518,0.75266517,1719.0,1718.9,9.39804672]
[1659298598694,0.75266517,1719.0,1718.9,5.89804672]
[1659298598890,0.75266517,1719.0,1718.9,9.39804672]
[1659298602619,0.75266517,1719.0,1718.9,5.89804672]
[1659298603026,6.31929114,1719.0,1718.9,5.89804672]
[1659298603379,0.75266517,1719.0,1718.9,5.89804672]
[1659298609028,0.75266517,1719.0,1718.9,3.0]
[1659298609462,2.20647517,1719.0,1718.9,3.0]
[1659298609840,2.20647517,1719.0,1718.8,1.45358]
[1659298610030,2.20647517,1719.0,1718.8,4.35162672]
[1659298610231,2.20647517,1719.0,1718.9,3.0]
[1659298612333,2.20647517,1719.0,1718.9,5.89804672]
[1659298613656,2.20384491,1719.0,1718.9,5.89804672]
[1659298615865,2.20384491,1719.0,1718.9,2.89804672]
[1659298616070,2.20384491,1719.0,1718.9,3.07403108]
[1659298616390,0.75003491,1719.0,1718.9,6.07403108]
[1659298616957,0.75003491,1719.0,1718.9,9.57403108]
[1659298617158,0.45003491,1719.0,1718.9,9.57403108]
[1659298618420,0.45003491,1719.0,1718.9,6.07403108]
[1659298618561,0.75003491,1719.0,1718.9,5.89804672]
[1659298618760,0.75003491,1719.0,1718.9,2.89804672]
[1659298619306,0.75003491,1719.0,1718.8,10.16571672]
[1659298619507,2.20381491,1719.0,1718.9,2.89804672]
[1659298620168,2.20381491,1719.0,1718.9,5.89804672]
[1659298623067,0.75003491,1719.0,1718.9,5.89804672]
[1659298629837,0.75003491,1719.0,1718.9,3.0]
[1659298630046,0.75003491,1719.0,1718.5,1.50407]
[1659298630232,0.29086,1718.8,1718.4,6.39804672]
[1659298630751,0.59086,1718.8,1718.4,6.39804672]
[1659298631326,0.65033059,1718.8,1718.4,2.89804672]
[1659298631506,0.65033059,1718.8,1718.4,4.35214672]
[1659298631775,0.94115059,1718.8,1718.4,4.35214672]
[1659298632598,0.94115059,1718.8,1718.5,3.0]
[1659298632799,0.65029059,1718.8,1718.6,1.454]
[1659298633003,0.2908,1718.7,1718.6,1.454]
[1659298633247,0.34732613,1718.7,1718.6,1.454]
[1659298634226,0.38024415,1718.7,1718.6,1.454]
[1659298635307,0.43974584,1718.7,1718.6,1.454]
[1659298637655,0.436735,1718.7,1718.6,1.454]
[1659298643860,0.436735,1718.7,1718.6,4.35204672]
[1659298644057,0.436735,1718.7,1718.6,7.52803108]
[1659298644058,0.145935,1718.7,1718.6,7.52803108]
[1659298647459,0.145935,1718.7,1718.6,11.02803108]
[1659298651121,0.145935,1718.7,1718.6,7.52803108]
[1659298652796,0.145935,1718.7,1718.6,11.02803108]
[1659298653622,0.145935,1718.7,1718.6,7.52803108]
[1659298653980,0.145935,1718.7,1718.6,7.35204672]
[1659298654430,0.145935,1718.7,1718.6,10.85204672]
[1659298654630,0.145935,1718.7,1718.6,7.35204672]
[1659298655688,0.145935,1718.7,1718.6,10.85204672]
[1659298657196,0.145935,1718.7,1718.6,7.35204672]
[1659298657535,7.5,1718.6,1718.3,9.00797371]
[1659298657736,7.5,1718.6,1718.1,0.23577939]
[1659298657737,0.6363,1718.5,1718.1,0.23577939]
[1659298657974,8.6566,1718.5,1718.1,0.23577939]
[1659298658214,8.5203,1718.5,1718.1,0.23577939]
[1659298659000,8.81119,1718.5,1718.1,0.23577939]
[1659298659221,0.03728512,1718.4,1718.2,2.89804672]
[1659298659387,0.3,1718.3,1718.2,2.89804672]
[1659298659770,0.3,1718.3,1718.2,3.0]
[1659298660088,0.3,1718.3,1718.2,4.45424]
[1659298660089,0.59087,1718.3,1718.2,4.45424]
[1659298660287,0.29087,1718.3,1718.2,4.45424]
[1659298660665,1.74525,1718.3,1718.2,4.45424]
[1659298660865,2.04525,1718.3,1718.2,4.45424]
[1659298661082,2.15219016,1718.3,1718.2,4.45424]
[1659298661705,2.15219016,1718.3,1718.2,7.35228672]
[1659298661882,0.69781016,1718.3,1718.2,7.35228672]
[1659298666415,0.69781016,1718.3,1718.2,10.85228672]
[1659298672214,0.69781016,1718.3,1718.2,7.35228672]
[1659298677970,0.69781016,1718.3,1718.2,10.85228672]
[1659298678152,0.69781016,1718.3,1718.2,7.35228672]
[1659298679376,0.69394585,1718.3,1718.2,7.35228672]
[1659298680160,0.69394585,1718.3,1718.2,5.89804672]
[1659298680365,0.40307585,1718.3,1718.2,5.89804672]
[1659298682178,0.10307585,1718.3,1718.2,5.89804672]
[1659298682359,0.10307585,1718.3,1718.2,9.39804672]
[1659298682698,0.10307585,1718.3,1718.2,5.89804672]
[1659298684612,0.10307585,1718.3,1718.2,9.39804672]
[1659298685464,0.10307585,1718.3,1718.2,5.89804672]
[1659298685667,0.40307585,1718.3,1718.2,9.39804672]
[1659298685904,0.40307585,1718.3,1718.2,5.89804672]
[1659298687014,0.40307585,1718.3,1718.2,9.68847038]
[1659298687165,4.10307585,1718.3,1718.1,1.68986939]
[1659298687368,4.10307585,1718.3,1718.1,0.23577939]
[1659298687369,0.40307585,1718.3,1718.1,0.23577939]
[1659298687565,0.40307585,1718.3,1717.9,2.89804672]
[1659298687802,6.0509988,1718.3,1717.9,2.89804672]
[1659298688262,6.4872988,1718.3,1717.9,2.89804672]
[1659298688468,0.40307585,1718.3,1717.9,2.89804672]
[1659298688760,0.40307585,1718.3,1718.0,3.0]
[1659298688921,0.40307585,1718.3,1718.1,2.89804672]
[1659298689952,0.10307585,1718.3,1718.1,2.89804672]
[1659298690268,0.10307585,1718.3,1718.2,3.0]
[1659298690478,0.10307585,1718.3,1718.2,5.89804672]
[1659298694481,1.77599813,1718.4,1718.3,0.065]
[1659298694681,1.77599813,1718.4,1718.3,3.57204672]
[1659298694895,3.1365,1718.6,1718.4,1.45361]
[1659298695085,5.9516,1718.9,1718.5,2.89804672]
[1659298695280,1.45396,1718.7,1718.5,2.89804672]
[1659298695511,0.29074,1718.7,1718.4,2.89804672]
[1659298695732,0.29074,1718.7,1718.5,3.0]
[1659298696100,2.0447,1718.7,1718.5,3.0]
[1659298696315,0.4363,1718.6,1718.1,0.05]
[1659298696487,0.5,1718.5,1717.9,0.05]
[1659298696669,2.18178,1718.4,1718.0,2.89804672]
[1659298696872,0.3,1718.3,1718.0,2.89804672]
[1659298698609,0.29086,1718.2,1718.0,2.89804672]
[1659298698776,0.29086,1718.2,1718.0,4.35231672]
[1659298699627,1.74513,1718.2,1718.0,4.35231672]
[1659298699813,0.3,1718.1,1718.0,4.35231672]
[1659298700043,0.3,1718.1,1718.0,7.35231672]
[1659298700832,0.3,1718.1,1718.0,7.52830108]
[1659298701027,0.45541338,1718.1,1718.0,7.52830108]
[1659298715042,0.45213467,1718.1,1718.0,7.52830108]
[1659298715547,0.45213467,1718.1,1718.0,6.07403108]
[1659298716942,0.45213467,1718.1,1718.0,6.24585208]
[1659298722280,0.15213467,1718.1,1718.0,6.24585208]
[1659298722665,0.45213467,1718.1,1718.0,6.07403108]
[1659298725671,3.95213467,1718.1,1717.8,5.81731]
[1659298725872,0.2,1717.9,1717.5,3.55]
[1659298726114,0.4365,1717.8,1717.4,0.29577064]
[1659298726473,3.9365,1717.8,1717.4,0.29577064]
[1659298726675,0.2,1717.7,1717.4,0.29577064]
[1659298726890,5.89781268,1717.6,1717.4,0.29577064]
[1659298727124,5.89781268,1717.6,1717.3,0.17195419]
[1659298727125,6.19781268,1717.6,1717.3,0.17195419]
[1659298727424,0.291,1717.5,1717.3,2.89804672]
[1659298728717,1.746,1717.5,1717.3,2.89804672]
[1659298728925,0.3,1717.4,1717.3,2.89804672]
[1659298729423,0.39499603,1717.4,1717.3,2.89804672]
[1659298732654,0.59499603,1717.4,1717.3,2.89804672]
[1659298733436,0.64445049,1717.4,1717.3,2.89804672]
[1659298733674,0.44445049,1717.4,1717.3,2.89804672]
[1659298733873,0.44445049,1717.4,1717.3,5.89804672]
[1659298737393,0.46256511,1717.4,1717.3,5.89804672]
[1659298737993,0.46256511,1717.4,1717.3,5.91804672]
[1659298738149,0.46256511,1717.4,1717.3,6.09403108]
[1659298738489,0.46256511,1717.4,1717.3,6.38649211]
[1659298741480,0.46256511,1717.4,1717.3,5.91804672]
[1659298742950,0.46256511,1717.4,1717.3,6.09403108]
[1659298743351,0.29087,1717.7,1717.3,6.09403108]
[1659298743601,0.05,1717.8,1717.3,6.09403108]
[1659298743602,20.6794,1718.6,1717.8,7.0]
[1659298743806,20.6794,1718.6,1718.2,3.5]
[1659298743807,17.9218,1718.6,1718.2,3.5]
[1659298743957,17.9218,1718.6,1718.3,5.89804672]
[1659298743958,11.2641,1718.6,1718.3,5.89804672]
[1659298744160,3.121,1718.6,1718.3,5.89804672]
[1659298744558,0.4362,1718.7,1718.3,5.89804672]
[1659298745399,0.14452176,1718.6,1718.3,5.89804672]
[1659298745573,0.29083,1718.5,1718.3,5.89804672]
[1659298748402,1.74503,1718.5,1718.3,5.89804672]
[1659298748611,0.3,1718.4,1718.3,5.89804672]
[1659298749386,0.39416812,1718.4,1718.3,5.89804672]
[1659298757224,0.39416812,1718.4,1718.3,3.0]
[1659298757427,0.39416812,1718.4,1718.2,4.45416]
[1659298757428,2.13935812,1718.4,1718.2,4.45416]
[1659298763803,2.13935812,1718.4,1718.3,2.89804672]
[1659298763985,2.13935812,1718.4,1718.3,5.89804672]
[1659298764411,2.13548195,1718.4,1718.3,5.89804672]
[1659298766576,2.13548195,1718.4,1718.3,12.89804672]
[1659298766786,0.68115195,1718.4,1718.3,10.01004672]
[1659298767020,0.1913733,1718.4,1718.3,10.21004672]
[1659298767313,0.0543733,1718.4,1718.3,10.21004672]
[1659298767758,0.05405922,1718.4,1718.3,10.21004672]
[1659298768060,0.09070664,1718.4,1718.3,10.21004672]
[1659298771591,0.39070664,1718.4,1718.3,10.21004672]
[1659298773797,0.39070664,1718.4,1718.3,5.89804672]
[1659298775760,0.39070664,1718.4,1718.3,2.89804672]
[1659298777257,0.39070664,1718.4,1718.3,5.89804672]
[1659298778496,0.39070664,1718.4,1718.2,10.17786]
[1659298778497,0.39070664,1718.4,1718.2,4.36157]
[1659298778717,3.59040664,1718.4,1718.2,7.25961672]
[1659298788887,3.58769046,1718.4,1718.2,7.25961672]
[1659298806747,3.88769046,1718.4,1717.9,0.22395881]
[1659298806995,3.88769046,1718.4,1718.0,2.89804672]
[1659298807176,0.58192,1718.2,1717.9,2.89804672]
[1659298807377,0.3,1718.1,1717.9,2.89804672]
[1659298807565,0.6,1718.1,1717.9,2.89804672]
[1659298808470,2.05482,1718.1,1717.9,2.89804672]
[1659298808897,2.34577,1718.1,1717.9,2.89804672]
[1659298810817,4.09136,1718.1,1717.9,2.89804672]
[1659298811027,4.09136,1718.1,1717.7,3.1937657]
[1659298811204,2.34575,1718.1,1717.9,1.45464]
[1659298811379,0.29095,1718.0,1717.9,1.45464]
[1659298811845,1.49747042,1718.0,1717.9,1.45464]
[1659298812534,0.04272042,1718.0,1717.9,4.35268672]
[1659298812754,0.04272042,1718.0,1717.9,4.52867108]
[1659298813399,0.03906984,1718.0,1717.9,4.52867108]
[1659298814310,0.03906984,1718.0,1717.9,4.35268672]
[1659298825459,0.03906984,1718.0,1717.9,7.35268672]
[1659298826059,0.05061657,1718.0,1717.9,7.35268672]
[1659298829675,0.05061657,1718.0,1717.9,10.85268672]
[1659298830661,0.00061657,1718.0,1717.9,10.85268672]
[1659298830898,0.0433422,1718.0,1717.9,10.85268672]
[1659298835289,0.0433422,1718.0,1717.9,7.35268672]
[1659298836393,0.0433422,1718.0,1717.9,7.30268672]
[1659298837042,0.05512019,1718.0,1717.9,7.30268672]
[1659298838025,0.0433422,1718.0,1717.9,7.30268672]
[1659298838729,0.0433422,1718.0,1717.9,10.80268672]
[1659298839167,0.0433422,1718.0,1717.9,11.41168672]
[1659298839375,0.0433422,1718.0,1717.9,11.61168672]
[1659298840279,0.0433422,1718.0,1717.9,11.41168672]
[1659298842372,0.0433422,1718.0,1717.9,7.91168672]
[1659298842917,0.0433422,1718.0,1717.9,11.41168672]
[1659298848525,0.0433422,1718.0,1717.9,7.30268672]
[1659298851637,0.0433422,1718.0,1717.9,4.30268672]
[1659298852359,0.0433422,1718.0,1717.9,1.40464]
[1659298852561,0.0433422,1718.0,1717.7,1.75045898]
[1659298852760,0.4364,1717.9,1717.7,4.6485057]
[1659298852967,0.4364,1717.9,1717.7,3.1937657]
[1659298853136,1.0364,1717.9,1717.7,3.1937657]
[1659298853338,0.6,1717.9,1717.7,3.1937657]
[1659298853667,0.3,1717.9,1717.7,3.1937657]
[1659298853853,0.2,1717.5,1717.4,0.05]
[1659298854084,0.2,1717.5,1717.3,0.02]
[1659298854257,5.2366,1717.4,1717.3,0.02]
[1659298855992,1.31104352,1717.4,1717.3,0.02]
[1659298856166,0.87444352,1717.4,1717.3,0.02]
[1659298856884,1.07444352,1717.4,1717.3,0.02]
[1659298858946,1.37444352,1717.4,1717.3,0.02]
[1659298859778,1.17444352,1717.4,1717.3,0.02]
[1659298859945,1.17444352,1717.4,1716.9,0.05]
[1659298860146,1.17444352,1717.4,1716.8,1.63250059]
[1659298860147,10.121,1717.3,1716.8,0.17732059]
[1659298860390,0.4366,1717.2,1716.6,3.8360959]
[1659298860551,6.8576,1717.2,1716.6,6.68414262]
[1659298860751,6.8576,1717.2,1716.6,3.18414262]
[1659298861947,0.04199311,1717.1,1716.6,3.18414262]
[1659298862178,0.7367,1717.0,1716.5,6.5]
[1659298862376,1.0367,1717.0,1716.5,6.5]
[1659298862565,1.0367,1717.0,1716.1,0.17461164]
[1659298862566,0.2,1716.3,1716.1,0.17461164]
[1659298862768,6.121,1716.2,1716.1,0.00061164]
[1659298862973,6.121,1716.2,1716.0,0.3]
[1659298862974,6.4369,1716.1,1716.0,0.3]
[1659298863163,6.89651911,1716.1,1716.0,0.3]
[1659298863550,12.53910607,1716.1,1716.0,0.3]
[1659298863751,0.2,1715.7,1715.5,0.04113539]
[1659298863998,0.812,1715.7,1715.5,0.04113539]
[1659298864182,8.6,1715.6,1715.5,0.04113539]
[1659298864381,9.037,1715.6,1715.5,0.04113539]
[1659298864567,9.037,1715.6,1714.7,7.50609]
[1659298864568,0.2,1715.4,1714.7,7.50609]
[1659298864771,9.209,1715.6,1714.7,7.50609]
[1659298864772,0.2,1715.2,1714.7,0.00039]
[1659298865157,0.2,1715.0,1714.7,0.00039]
[1659298865356,0.2,1715.0,1714.4,0.10357409]
[1659298865357,5.7,1714.5,1714.4,0.10357409]
[1659298865609,0.2,1714.5,1714.4,0.00357409]
[1659298865957,1.0373,1714.7,1714.4,0.00357409]
[1659298865958,0.49154,1714.6,1714.4,0.00357409]
[1659298866159,0.2,1714.4,1714.3,0.7521772]
[1659298866358,5.5,1714.5,1714.1,0.0230921]
[1659298866359,3.2,1714.2,1714.1,0.0230921]
[1659298866690,3.2,1714.2,1713.6,0.66180595]
[1659298866691,3.8,1713.7,1713.6,0.5]
[1659298867003,3.8,1713.7,1713.0,0.3]
[1659298867004,7.5,1713.9,1712.6,5.0]
[1659298867299,7.5,1713.9,1713.1,3.5]
[1659298867300,7.7,1713.6,1713.1,3.5]
[1659298867498,0.34471435,1713.5,1713.1,3.5]
[1659298867707,0.2,1713.4,1713.1,3.5]
[1659298867873,0.2,1713.4,1712.8,0.05]
[1659298868070,0.3,1713.4,1713.1,3.45]
[1659298868262,6.9193409,1713.6,1713.3,3.45]
[1659298868595,0.75961911,1713.6,1713.2,0.17598436]
[1659298868805,7.5,1713.5,1713.4,0.17598436]
[1659298869461,0.75961911,1713.6,1713.4,0.17598436]
[1659298869664,7.0,1713.5,1713.4,0.17598436]
[1659298870057,0.75961911,1713.6,1713.4,0.17598436]
[1659298870058,0.75961911,1713.6,1713.4,0.12598436]
[1659298870460,7.0,1713.5,1713.4,0.12598436]
[1659298870863,0.3,1713.6,1713.4,3.12598436]
[1659298871097,0.07809504,1713.7,1713.5,3.45]
[1659298871406,0.07809504,1713.7,1713.6,3.0]
[1659298871911,0.07809504,1713.7,1713.6,3.17598436]
[1659298872206,0.0383603,1713.7,1713.6,3.17598436]
[1659298874166,7.0383603,1713.7,1713.6,0.17598436]
[1659298874367,0.0383603,1713.7,1713.4,3.45]
[1659298874603,0.0383603,1713.7,1713.4,3.62598436]
[1659298874814,0.0383603,1713.7,1713.4,3.4]
[1659298875124,0.0383603,1713.7,1713.5,3.07403108]
[1659298875663,0.0383603,1713.7,1713.6,3.07403108]
[1659298875907,0.0383603,1713.7,1713.6,6.47403108]
[1659298876077,10.39137089,1713.8,1713.6,10.08303108]